[Event "*** Titled Tuesday 3|2 Blitz"]
[Site "Chess.com"]
[Date "2015.05.05"]
[Round "1"]
[White "Shankland"]
[Black "goldaxe"]
[Result "1-0"]
[WhiteElo "2517"]
[BlackElo "2172"]
[TimeControl "180+2"]
[EndTime "11:09:03 PDT"]
[Termination "Shankland won by resignation"]

1. e4 {[%clk 0:02:15.3]} 1... e5 {[%clk 0:02:59.1]} 2. Nf3 {[%clk 0:02:17.2]}
2... Nc6 {[%clk 0:02:59.7]} 3. Bb5 {[%clk 0:02:18.8]} 3... a6 {[%clk 0:03:00.9]}
4. Ba4 {[%clk 0:02:19.4]} 4... Nf6 {[%clk 0:03:01.9]} 5. O-O {[%clk 0:02:20.5]}
5... Be7 {[%clk 0:03:02.4]} 6. Re1 {[%clk 0:02:20]} 6... b5 {[%clk 0:03:03.1]}
7. Bb3 {[%clk 0:02:21.2]} 7... d6 {[%clk 0:03:03.1]} 8. c3 {[%clk 0:02:22.7]}
8... O-O {[%clk 0:03:03.6]} 9. d4 {[%clk 0:02:24.3]} 9... Bg4 {[%clk 0:02:56.8]}
10. Be3 {[%clk 0:02:24.5]} 10... Bh5 {[%clk 0:02:56.3]} 11. h3 {[%clk
0:02:24.4]} 11... Na5 {[%clk 0:02:44.2]} 12. Bc2 {[%clk 0:02:24.7]} 12... Nc4
{[%clk 0:02:44.3]} 13. Bc1 {[%clk 0:02:25.1]} 13... exd4 {[%clk 0:02:43.8]} 14.
cxd4 {[%clk 0:02:25.6]} 14... d5 {[%clk 0:02:44.8]} 15. e5 {[%clk 0:02:26.5]}
15... Ne4 {[%clk 0:02:45.1]} 16. Nc3 {[%clk 0:02:21.3]} 16... Bb4 {[%clk
0:02:23.6]} 17. Nxd5 {[%clk 0:02:06.2]} 17... Bxe1 {[%clk 0:02:20.1]} 18. Bxe4
{[%clk 0:02:06.9]} 18... Ba5 {[%clk 0:02:05.6]} 19. b3 {[%clk 0:02:06.7]} 19...
Nb6 {[%clk 0:02:03.4]} 20. Nf4 {[%clk 0:01:24]} 20... Bxf3 {[%clk 0:02:00.3]}
21. Bxf3 {[%clk 0:01:25.3]} 21... Bc3 {[%clk 0:01:49.1]} 22. Rb1 {[%clk
0:01:18.6]} 22... Qxd4 {[%clk 0:01:48.3]} 23. Qxd4 {[%clk 0:01:18.6]} 23... Bxd4
{[%clk 0:01:48.9]} 24. Bxa8 {[%clk 0:01:20.1]} 24... Rxa8 {[%clk 0:01:47.7]} 25.
Bb2 {[%clk 0:01:18.2]} 25... Rd8 {[%clk 0:01:44.2]} 26. Kf1 {[%clk 0:01:16.5]}
26... Bxb2 {[%clk 0:01:11.2]} 27. Rxb2 {[%clk 0:01:17.2]} 27... Rd4 {[%clk
0:01:12.8]} 28. g3 {[%clk 0:01:13.9]} 28... Re4 {[%clk 0:01:09.2]} 29. Rd2
{[%clk 0:01:13.7]} 29... Kf8 {[%clk 0:01:06.9]} 30. Rd8+ {[%clk 0:01:08.4]}
30... Ke7 {[%clk 0:01:07.8]} 31. Rh8 {[%clk 0:01:09.9]} 31... Rxe5 {[%clk
0:00:29.1]} 32. Rxh7 {[%clk 0:01:10.7]} 32... Kf6 {[%clk 0:00:24.4]} 33. Rh8
{[%clk 0:00:52]} 33... Nd5 {[%clk 0:00:22.7]} 34. Nd3 {[%clk 0:00:49.7]} 34...
Re7 {[%clk 0:00:19.4]} 35. Rh5 {[%clk 0:00:49.2]} 35... Nc3 {[%clk 0:00:19.7]}
36. Nb4 {[%clk 0:00:42.2]} 36... a5 {[%clk 0:00:19.3]} 37. Nd5+ {[%clk
0:00:43.2]} 37... Nxd5 {[%clk 0:00:19.8]} 38. Rxd5 {[%clk 0:00:44.9]} 38... c6
{[%clk 0:00:17.9]} 39. Rc5 {[%clk 0:00:46]} 39... Re6 {[%clk 0:00:18.1]} 40. a4
{[%clk 0:00:46.9]} 40... bxa4 {[%clk 0:00:16.5]} 41. bxa4 {[%clk 0:00:48.8]}
41... Rd6 {[%clk 0:00:12.7]} 42. Rxa5 {[%clk 0:00:49.6]} 42... Rd1+ {[%clk
0:00:13.7]} 43. Ke2 {[%clk 0:00:50.3]} 43... Ra1 {[%clk 0:00:15.2]} 44. h4
{[%clk 0:00:51.8]} 44... g6 {[%clk 0:00:15.7]} 45. g4 {[%clk 0:00:52.8]} 45...
Ra3 {[%clk 0:00:16.1]} 46. Ra6 {[%clk 0:00:52.4]} 46... Ke7 {[%clk 0:00:15.8]}
47. f3 {[%clk 0:00:52.3]} 47... Kd7 {[%clk 0:00:14.9]} 48. h5 {[%clk 0:00:53.4]}
48... gxh5 {[%clk 0:00:15]} 49. gxh5 {[%clk 0:00:55.3]} 49... Ke7 {[%clk
0:00:16.5]} 50. h6 {[%clk 0:00:56.5]} 50... Ra2+ {[%clk 0:00:15.3]} 51. Ke3
{[%clk 0:00:57.3]} 51... f6 {[%clk 0:00:09.9]} 52. h7 {[%clk 0:00:57.4]} 52...
Rh2 {[%clk 0:00:09.4]} 53. Ra8 {[%clk 0:00:58.9]} 53... Rxh7 {[%clk 0:00:03.4]}
54. Ra7+ {[%clk 0:01:00]} 54... Ke6 {[%clk 0:00:05.3]} 55. Rxh7 {[%clk
0:01:01.7]} 1-0

[Event "*** Titled Tuesday 3|2 Blitz"]
[Site "Chess.com"]
[Date "2015.05.05"]
[Round "1"]
[White "Mvpag"]
[Black "bugsbunny444"]
[Result "0-1"]
[WhiteElo "1963"]
[BlackElo "2319"]
[TimeControl "180+2"]
[EndTime "11:10:05 PDT"]
[Termination "bugsbunny444 won by resignation"]

1. d4 {[%clk 0:03:00.9]} 1... e6 {[%clk 0:03:00.5]} 2. Nf3 {[%clk 0:03:00.8]}
2... d5 {[%clk 0:03:01.2]} 3. e3 {[%clk 0:03:01.2]} 3... Nf6 {[%clk 0:03:01.9]}
4. Bd3 {[%clk 0:03:02.8]} 4... c5 {[%clk 0:03:02.9]} 5. b3 {[%clk 0:03:03]} 5...
Nc6 {[%clk 0:03:03.6]} 6. O-O {[%clk 0:03:03.4]} 6... Bd6 {[%clk 0:03:01.4]} 7.
Bb2 {[%clk 0:03:03.8]} 7... O-O {[%clk 0:03:01.7]} 8. Nbd2 {[%clk 0:03:04.8]}
8... Qe7 {[%clk 0:02:48.1]} 9. Ne5 {[%clk 0:02:59.1]} 9... Qc7 {[%clk
0:02:48.7]} 10. f4 {[%clk 0:02:59]} 10... cxd4 {[%clk 0:02:48.9]} 11. exd4
{[%clk 0:02:59.5]} 11... Nb4 {[%clk 0:02:50.3]} 12. Qf3 {[%clk 0:02:42.3]} 12...
b6 {[%clk 0:02:26.9]} 13. a3 {[%clk 0:02:37.7]} 13... Nxd3 {[%clk 0:02:27.9]}
14. Qxd3 {[%clk 0:02:38.9]} 14... Bb7 {[%clk 0:02:22.4]} 15. Rac1 {[%clk
0:02:37.4]} 15... Rac8 {[%clk 0:02:14.9]} 16. h3 {[%clk 0:02:33.7]} 16... Qe7
{[%clk 0:02:01.4]} 17. Rfe1 {[%clk 0:02:18.1]} 17... Ne4 {[%clk 0:01:49.7]} 18.
c4 {[%clk 0:01:58.2]} 18... Bxa3 {[%clk 0:01:23.5]} 19. Bxa3 {[%clk 0:01:44.3]}
19... Qxa3 {[%clk 0:01:25.4]} 20. Ra1 {[%clk 0:01:36.6]} 20... Qb4 {[%clk
0:01:17.2]} 21. Nxe4 {[%clk 0:01:14.3]} 21... dxe4 {[%clk 0:01:18.1]} 22. Qg3
{[%clk 0:01:15.7]} 22... a5 {[%clk 0:01:01]} 23. Nd7 {[%clk 0:01:10.4]} 23...
Rfd8 {[%clk 0:00:55.4]} 24. Nf6+ {[%clk 0:01:10.8]} 24... Kh8 {[%clk 0:00:53.9]}
25. Nh5 {[%clk 0:01:10.4]} 25... Qf8 {[%clk 0:00:47.1]} 26. d5 {[%clk
0:00:49.5]} 26... exd5 {[%clk 0:00:46]} 27. f5 {[%clk 0:00:50.4]} 27... f6
{[%clk 0:00:42.5]} 28. cxd5 {[%clk 0:00:49.4]} 28... Bxd5 {[%clk 0:00:43.2]} 29.
Rac1 {[%clk 0:00:47.9]} 29... Qf7 {[%clk 0:00:21.4]} 30. Nf4 {[%clk 0:00:45.6]}
30... Bxb3 {[%clk 0:00:21]} 31. Qh4 {[%clk 0:00:42.3]} 31... Kg8 {[%clk
0:00:17.6]} 32. Rxc8 {[%clk 0:00:41.2]} 32... Rxc8 {[%clk 0:00:18.7]} 33. Rxe4
{[%clk 0:00:42.7]} 33... Re8 {[%clk 0:00:18]} 34. Rd4 {[%clk 0:00:35.7]} 34...
Qe7 {[%clk 0:00:17.3]} 35. Kh2 {[%clk 0:00:24.4]} 35... Qe5 {[%clk 0:00:16.9]}
36. Qf2 {[%clk 0:00:17.2]} 36... Qxf5 {[%clk 0:00:14.9]} 37. Rd2 {[%clk
0:00:14.2]} 37... g5 {[%clk 0:00:12.2]} 38. Nd3 {[%clk 0:00:10.3]} 38... Qxf2
{[%clk 0:00:12.7]} 39. Nxf2 {[%clk 0:00:11.1]} 39... Re6 {[%clk 0:00:11.2]} 40.
Ng4 {[%clk 0:00:11.4]} 40... h5 {[%clk 0:00:12.1]} 41. Nh6+ {[%clk 0:00:12]}
41... Kh7 {[%clk 0:00:12]} 42. Nf5 {[%clk 0:00:13.5]} 42... Kg6 {[%clk
0:00:13.5]} 43. Nd4 {[%clk 0:00:13.9]} 43... Re3 {[%clk 0:00:14.3]} 44. Nxb3
{[%clk 0:00:14.1]} 44... Rxb3 {[%clk 0:00:15]} 45. Rd6 {[%clk 0:00:16]} 45... a4
{[%clk 0:00:15.7]} 46. h4 {[%clk 0:00:13.4]} 46... gxh4 {[%clk 0:00:16.4]} 47.
g3 {[%clk 0:00:09.9]} 47... hxg3+ {[%clk 0:00:17]} 48. Kh3 {[%clk 0:00:10.6]}
48... a3 {[%clk 0:00:17.7]} 49. Rd2 {[%clk 0:00:10.2]} 49... b5 {[%clk 0:00:18]}
50. Kh4 {[%clk 0:00:10.3]} 50... b4 {[%clk 0:00:16.6]} 51. Kh3 {[%clk
0:00:10.6]} 51... Rb2 {[%clk 0:00:17.1]} 52. Rd3 {[%clk 0:00:11]} 52... a2
{[%clk 0:00:18]} 53. Rxg3+ {[%clk 0:00:11.9]} 53... Kh6 {[%clk 0:00:19.5]} 54.
Rg1 {[%clk 0:00:11.4]} 54... Rb1 {[%clk 0:00:20.2]} 55. Rg8 {[%clk 0:00:02.7]}
55... a1=Q {[%clk 0:00:18.3]} 56. Rh8+ {[%clk 0:00:02.7]} 56... Kg7 {[%clk
0:00:19.2]} 57. Rg8+ {[%clk 0:00:03.4]} 0-1

[Event "*** Titled Tuesday 3|2 Blitz"]
[Site "Chess.com"]
[Date "2015.05.05"]
[Round "1"]
[White "9ShMat2"]
[Black "Palacios-LLera"]
[Result "1/2-1/2"]
[WhiteElo "2412"]
[BlackElo "2105"]
[TimeControl "180+2"]
[EndTime "11:11:48 PDT"]
[Termination "Game drawn by 50-move rule"]

1. e4 {[%clk 0:03:00.4]} 1... c5 {[%clk 0:02:59.6]} 2. c3 {[%clk 0:03:01.3]}
2... e6 {[%clk 0:03:00.2]} 3. d4 {[%clk 0:03:01.7]} 3... d5 {[%clk 0:03:00.9]}
4. e5 {[%clk 0:03:02.8]} 4... Nc6 {[%clk 0:03:01.9]} 5. Nf3 {[%clk 0:03:03.5]}
5... Qb6 {[%clk 0:03:02.3]} 6. a3 {[%clk 0:03:04]} 6... Bd7 {[%clk 0:03:03.6]}
7. b4 {[%clk 0:03:02.5]} 7... cxd4 {[%clk 0:03:04.8]} 8. cxd4 {[%clk 0:03:04.4]}
8... Rc8 {[%clk 0:03:05.8]} 9. Be3 {[%clk 0:03:02.6]} 9... a5 {[%clk 0:03:03.3]}
10. b5 {[%clk 0:02:42.4]} 10... Na7 {[%clk 0:03:04]} 11. Qb3 {[%clk 0:02:35.9]}
11... Nxb5 {[%clk 0:02:54.7]} 12. Nbd2 {[%clk 0:02:30.7]} 12... Qc6 {[%clk
0:02:49.6]} 13. Be2 {[%clk 0:02:09.7]} 13... Qc3 {[%clk 0:02:25.5]} 14. Qxc3
{[%clk 0:02:00.6]} 14... Nxc3 {[%clk 0:02:26.3]} 15. Bd3 {[%clk 0:01:57.9]}
15... Bb5 {[%clk 0:02:10.1]} 16. Bxb5+ {[%clk 0:01:46.8]} 16... Nxb5 {[%clk
0:02:11]} 17. a4 {[%clk 0:01:45.9]} 17... Na7 {[%clk 0:02:11.7]} 18. Ke2 {[%clk
0:01:42.9]} 18... Nc6 {[%clk 0:02:12.3]} 19. Rhc1 {[%clk 0:01:40.4]} 19... Bb4
{[%clk 0:02:12]} 20. Rab1 {[%clk 0:01:38.2]} 20... Nge7 {[%clk 0:02:12.3]} 21.
Nb3 {[%clk 0:01:36.7]} 21... O-O {[%clk 0:02:11.9]} 22. g4 {[%clk 0:01:35]}
22... b6 {[%clk 0:02:09.5]} 23. h4 {[%clk 0:01:26.8]} 23... Na7 {[%clk
0:02:08.4]} 24. Bg5 {[%clk 0:01:24.7]} 24... Rxc1 {[%clk 0:02:07.4]} 25. Rxc1
{[%clk 0:01:25.1]} 25... Rc8 {[%clk 0:02:08.3]} 26. Rxc8+ {[%clk 0:01:14.5]}
26... Naxc8 {[%clk 0:02:04.9]} 27. Kd3 {[%clk 0:01:11.6]} 27... Nc6 {[%clk
0:02:02.6]} 28. Na1 {[%clk 0:01:08.6]} 28... h6 {[%clk 0:02:02.7]} 29. Be3
{[%clk 0:01:05.2]} 29... N8a7 {[%clk 0:02:02.9]} 30. Nc2 {[%clk 0:01:03.1]}
30... Be7 {[%clk 0:02:02.3]} 31. Kc3 {[%clk 0:01:00.5]} 31... b5 {[%clk
0:01:58.2]} 32. Kb3 {[%clk 0:00:59.2]} 32... b4 {[%clk 0:01:57.6]} 33. Nfe1
{[%clk 0:00:56.3]} 33... Nc8 {[%clk 0:01:56.7]} 34. h5 {[%clk 0:00:53.8]} 34...
Nb6 {[%clk 0:01:57.4]} 35. f4 {[%clk 0:00:51.4]} 35... Nc4 {[%clk 0:01:56.7]}
36. Bc1 {[%clk 0:00:50.9]} 36... Kf8 {[%clk 0:01:54.9]} 37. Nf3 {[%clk
0:00:45.7]} 37... f6 {[%clk 0:01:42.3]} 38. Ne3 {[%clk 0:00:39.8]} 38... Nxe3
{[%clk 0:01:40]} 39. Bxe3 {[%clk 0:00:39.4]} 39... fxe5 {[%clk 0:01:41.1]} 40.
dxe5 {[%clk 0:00:38.2]} 40... Ke8 {[%clk 0:01:39.2]} 41. f5 {[%clk 0:00:36.2]}
41... Kf7 {[%clk 0:01:28.2]} 42. Bb6 {[%clk 0:00:36.7]} 42... Bd8 {[%clk
0:01:26.1]} 43. Nd4 {[%clk 0:00:31.4]} 43... Nxd4+ {[%clk 0:01:20.6]} 44. Bxd4
{[%clk 0:00:33.3]} 44... Bc7 {[%clk 0:01:21.9]} 45. Kc2 {[%clk 0:00:30.3]} 45...
Ke7 {[%clk 0:01:22.6]} 46. Kd3 {[%clk 0:00:30.7]} 46... Kf7 {[%clk 0:01:21.3]}
47. Ke3 {[%clk 0:00:28.1]} 47... Ke7 {[%clk 0:01:18.6]} 48. Kf4 {[%clk
0:00:29.5]} 48... Kf7 {[%clk 0:01:18.7]} 49. Kf3 {[%clk 0:00:29.7]} 49... Ke7
{[%clk 0:01:19.6]} 50. Ke2 {[%clk 0:00:31.3]} 50... Kf7 {[%clk 0:01:20.8]} 51.
Kd1 {[%clk 0:00:32.9]} 51... Ke7 {[%clk 0:01:21.7]} 52. Ke1 {[%clk 0:00:34.3]}
52... Bd8 {[%clk 0:01:20.8]} 53. Kd2 {[%clk 0:00:35.1]} 53... Kd7 {[%clk
0:01:22]} 54. Kd3 {[%clk 0:00:35.1]} 54... Ke7 {[%clk 0:01:18.2]} 55. Kc2 {[%clk
0:00:35.3]} 55... Kf7 {[%clk 0:01:19.3]} 56. Kd2 {[%clk 0:00:35.9]} 56... Bc7
{[%clk 0:01:20.7]} 57. Ke3 {[%clk 0:00:37]} 57... Ke7 {[%clk 0:01:21.9]} 58. Kf4
{[%clk 0:00:38.4]} 58... Kf7 {[%clk 0:01:22.8]} 59. Kf3 {[%clk 0:00:38.6]} 59...
Bd8 {[%clk 0:01:22]} 60. Kf2 {[%clk 0:00:39.6]} 60... Bc7 {[%clk 0:01:15.1]} 61.
Ke1 {[%clk 0:00:40.4]} 61... Bd8 {[%clk 0:01:11.3]} 62. Kd1 {[%clk 0:00:40.9]}
62... Ke7 {[%clk 0:01:10.1]} 63. Ke2 {[%clk 0:00:41.5]} 63... Kd7 {[%clk
0:01:11.3]} 64. Kd3 {[%clk 0:00:41.3]} 64... Ke7 {[%clk 0:01:07.7]} 65. Kc2
{[%clk 0:00:41.7]} 65... Kf7 {[%clk 0:01:09]} 66. Kb1 {[%clk 0:00:43.2]} 66...
Bc7 {[%clk 0:01:10.2]} 67. Kc2 {[%clk 0:00:41.7]} 67... Bd8 {[%clk 0:01:11.5]}
68. Kd2 {[%clk 0:00:42.4]} 68... Bc7 {[%clk 0:01:12.6]} 69. Ke2 {[%clk
0:00:43.8]} 69... Bd8 {[%clk 0:01:10]} 70. Ke1 {[%clk 0:00:43.9]} 70... Bc7
{[%clk 0:01:11.2]} 71. Kf2 {[%clk 0:00:44.5]} 71... Bd8 {[%clk 0:01:12.1]} 72.
Kf3 {[%clk 0:00:42.1]} 72... Bc7 {[%clk 0:01:13.1]} 73. Ke3 {[%clk 0:00:40]}
73... Bd8 {[%clk 0:01:11.8]} 74. Kd3 {[%clk 0:00:40.6]} 74... Bc7 {[%clk
0:01:12.5]} 75. Kc2 {[%clk 0:00:39]} 75... Bd8 {[%clk 0:01:13.3]} 76. Kd2 {[%clk
0:00:36.5]} 76... Bc7 {[%clk 0:01:13.9]} 77. Ke2 {[%clk 0:00:35.1]} 77... Bd8
{[%clk 0:01:15.2]} 78. Kd3 {[%clk 0:00:36.2]} 78... Bc7 {[%clk 0:01:16.7]} 79.
Kc2 {[%clk 0:00:35.5]} 79... Bd8 {[%clk 0:01:18]} 80. Bc5 {[%clk 0:00:32.3]}
80... Bc7 {[%clk 0:01:17.4]} 81. Bd4 {[%clk 0:00:30.9]} 81... Bd8 {[%clk
0:01:18.4]} 82. Kd3 {[%clk 0:00:25.1]} 82... Bc7 {[%clk 0:01:19.6]} 83. Ke3
{[%clk 0:00:26.4]} 83... Bd8 {[%clk 0:01:20.7]} 84. Ke2 {[%clk 0:00:28]} 84...
Bc7 {[%clk 0:01:22]} 85. Ke1 {[%clk 0:00:29.5]} 85... Bd8 {[%clk 0:01:22.9]} 86.
Kd1 {[%clk 0:00:31.1]} 86... Bc7 {[%clk 0:01:24.2]} 87. Kc1 {[%clk 0:00:32.5]}
87... Bd8 {[%clk 0:01:25.6]} 88. Kb1 {[%clk 0:00:34]} 88... Bc7 {[%clk 0:01:27]}
89. Ka2 {[%clk 0:00:35.5]} 89... Bd8 {[%clk 0:01:28.5]} 90. Kb3 {[%clk
0:00:36.3]} 90... Bc7 {[%clk 0:01:29.9]} 91. Kc2 {[%clk 0:00:37.8]} 91... Bd8
{[%clk 0:01:31.3]} 92. Kd2 {[%clk 0:00:39.3]} 92... Bc7 {[%clk 0:01:32.8]} 93.
Kd3 {[%clk 0:00:39.9]} 93... Bd8 {[%clk 0:01:34.2]} 94. Bc5 {[%clk 0:00:35.2]}
94... Bc7 {[%clk 0:01:34.8]} 95. Kd4 {[%clk 0:00:32.3]} 95... Bd8 {[%clk
0:01:27.1]} 96. Bd6 {[%clk 0:00:19.6]} 96... Bb6+ {[%clk 0:01:25.1]} 97. Kd3
{[%clk 0:00:21]} 97... Bd8 {[%clk 0:01:25.1]} 98. Bc5 {[%clk 0:00:18.3]} 98...
Bc7 {[%clk 0:01:26.1]} 99. Bd4 {[%clk 0:00:19.8]} 99... Bd8 {[%clk 0:01:26.9]}
100. Bb2 {[%clk 0:00:21.4]} 100... Bc7 {[%clk 0:01:28.2]} 1/2-1/2

[Event "*** Titled Tuesday 3|2 Blitz"]
[Site "Chess.com"]
[Date "2015.05.05"]
[Round "1"]
[White "ViennaRocket"]
[Black "GeorgMeier"]
[Result "0-1"]
[WhiteElo "2277"]
[BlackElo "2741"]
[TimeControl "180+2"]
[EndTime "11:11:58 PDT"]
[Termination "GeorgMeier won by resignation"]

1. d4 {[%clk 0:03:00]} 1... e6 {[%clk 0:02:35.8]} 2. c4 {[%clk 0:03:00.6]} 2...
Nf6 {[%clk 0:02:36.9]} 3. Nc3 {[%clk 0:03:02.1]} 3... d5 {[%clk 0:02:38.4]} 4.
cxd5 {[%clk 0:03:02.7]} 4... exd5 {[%clk 0:02:39.4]} 5. Bg5 {[%clk 0:03:04.2]}
5... c6 {[%clk 0:02:40.7]} 6. e3 {[%clk 0:03:05.5]} 6... Bf5 {[%clk 0:02:36.6]}
7. Qf3 {[%clk 0:03:05.4]} 7... Bg6 {[%clk 0:02:38]} 8. Bxf6 {[%clk 0:03:06.6]}
8... Qxf6 {[%clk 0:02:39.9]} 9. Qxf6 {[%clk 0:03:08.1]} 9... gxf6 {[%clk
0:02:41.8]} 10. Kd2 {[%clk 0:03:09.5]} 10... Nd7 {[%clk 0:02:42.5]} 11. Bd3
{[%clk 0:03:09.8]} 11... Bd6 {[%clk 0:02:39.2]} 12. Nge2 {[%clk 0:03:10.6]}
12... Rg8 {[%clk 0:02:39.7]} 13. g3 {[%clk 0:03:11.4]} 13... Bxd3 {[%clk
0:02:38.1]} 14. Kxd3 {[%clk 0:03:12]} 14... f5 {[%clk 0:02:40]} 15. Rab1 {[%clk
0:03:06.1]} 15... a5 {[%clk 0:02:40.4]} 16. Rhc1 {[%clk 0:02:57]} 16... Nf6
{[%clk 0:02:41.1]} 17. Nd1 {[%clk 0:02:48.2]} 17... Kd7 {[%clk 0:02:35.1]} 18.
Nec3 {[%clk 0:02:39.5]} 18... Rge8 {[%clk 0:02:29.3]} 19. Na4 {[%clk 0:02:34.1]}
19... Ra7 {[%clk 0:02:20.7]} 20. Nc5+ {[%clk 0:02:04.8]} 20... Kd8 {[%clk
0:02:08.1]} 21. Ke2 {[%clk 0:01:58.5]} 21... Ne4 {[%clk 0:02:05.4]} 22. Nxe4
{[%clk 0:01:53.5]} 22... fxe4 {[%clk 0:02:07.3]} 23. a3 {[%clk 0:01:44.9]} 23...
Kd7 {[%clk 0:02:04.8]} 24. Nc3 {[%clk 0:01:44.4]} 24... a4 {[%clk 0:02:05.3]}
25. Kd2 {[%clk 0:01:31.4]} 25... Ke6 {[%clk 0:02:06.3]} 26. Ne2 {[%clk
0:01:32.3]} 26... Rg8 {[%clk 0:02:02.1]} 27. h3 {[%clk 0:01:27.2]} 27... f5
{[%clk 0:01:59.2]} 28. Rg1 {[%clk 0:01:21.9]} 28... Raa8 {[%clk 0:01:55.5]} 29.
Nf4+ {[%clk 0:01:12.1]} 29... Bxf4 {[%clk 0:01:55.1]} 30. gxf4 {[%clk
0:01:13.5]} 30... Rg6 {[%clk 0:01:53.5]} 31. Rxg6+ {[%clk 0:01:14.6]} 31... hxg6
{[%clk 0:01:55.4]} 32. Rg1 {[%clk 0:01:15.3]} 32... Kf6 {[%clk 0:01:56.5]} 33.
Kc3 {[%clk 0:01:14.4]} 33... Ra6 {[%clk 0:01:55.2]} 34. b4 {[%clk 0:01:13.4]}
34... axb3 {[%clk 0:01:54.9]} 35. Kxb3 {[%clk 0:01:14.7]} 35... Rb6+ {[%clk
0:01:43.1]} 36. Kc3 {[%clk 0:01:15.8]} 36... Ra6 {[%clk 0:01:38.4]} 37. Kb3
{[%clk 0:01:16.8]} 37... Ra8 {[%clk 0:01:36.8]} 38. a4 {[%clk 0:01:15.5]} 38...
b6 {[%clk 0:01:26.4]} 39. Kb4 {[%clk 0:01:15.1]} 39... Rc8 {[%clk 0:01:23.5]}
40. h4 {[%clk 0:00:35]} 40... c5+ {[%clk 0:01:13.8]} 41. dxc5 {[%clk 0:00:34.9]}
41... Rxc5 {[%clk 0:01:11.6]} 42. h5 {[%clk 0:00:28.4]} 42... gxh5 {[%clk
0:01:11.6]} 43. Rg5 {[%clk 0:00:29.5]} 43... Rc2 {[%clk 0:01:01.7]} 44. Rxh5
{[%clk 0:00:30.4]} 44... Rxf2 {[%clk 0:01:02.7]} 45. Rh6+ {[%clk 0:00:31.3]}
45... Ke7 {[%clk 0:01:01.3]} 46. Rxb6 {[%clk 0:00:32.3]} 46... Rb2+ {[%clk
0:01:00.3]} 47. Kc5 {[%clk 0:00:33.6]} 47... Rxb6 {[%clk 0:01:01.2]} 48. Kxb6
{[%clk 0:00:35.1]} 48... d4 {[%clk 0:01:03.1]} 49. a5 {[%clk 0:00:37]} 49...
dxe3 {[%clk 0:01:04.3]} 50. a6 {[%clk 0:00:38.9]} 50... e2 {[%clk 0:01:05.8]}
51. a7 {[%clk 0:00:40.8]} 51... e1=Q {[%clk 0:01:07.2]} 52. a8=Q {[%clk
0:00:42.5]} 52... Qb4+ {[%clk 0:01:05.2]} 53. Kc6 {[%clk 0:00:42.8]} 53... Qc4+
{[%clk 0:01:06]} 54. Kb6 {[%clk 0:00:43.2]} 54... Qd4+ {[%clk 0:01:06]} 55. Kc6
{[%clk 0:00:42.4]} 55... Qc4+ {[%clk 0:00:52.3]} 56. Kb6 {[%clk 0:00:43.5]}
56... e3 {[%clk 0:00:47.8]} 57. Qa3+ {[%clk 0:00:39]} 57... Kf6 {[%clk
0:00:41.2]} 58. Qxe3 {[%clk 0:00:38.2]} 58... Qe4 {[%clk 0:00:42.8]} 59. Qg3
{[%clk 0:00:38]} 59... Ke6 {[%clk 0:00:43.9]} 60. Qg6+ {[%clk 0:00:38.4]} 60...
Kd5 {[%clk 0:00:45]} 61. Qc6+ {[%clk 0:00:38.3]} 61... Kd4 {[%clk 0:00:45.5]}
62. Qc5+ {[%clk 0:00:35.9]} 62... Kd3 {[%clk 0:00:46.7]} 63. Qa3+ {[%clk
0:00:37]} 63... Ke2 {[%clk 0:00:47.7]} 64. Qd6 {[%clk 0:00:33.5]} 64... Kf3
{[%clk 0:00:48.6]} 65. Kc5 {[%clk 0:00:34.1]} 65... Qxf4 {[%clk 0:00:47.4]} 66.
Qd1+ {[%clk 0:00:35.3]} 66... Kg2 {[%clk 0:00:46.9]} 67. Qa1 {[%clk 0:00:28]}
67... Qe3+ {[%clk 0:00:43.8]} 68. Kd5 {[%clk 0:00:28.1]} 68... f4 {[%clk
0:00:43.9]} 69. Qg7+ {[%clk 0:00:28.4]} 69... Kf1 {[%clk 0:00:45]} 70. Qh6
{[%clk 0:00:27]} 70... Ke2 {[%clk 0:00:42.5]} 71. Qh2+ {[%clk 0:00:23.7]} 71...
Kd3 {[%clk 0:00:43.7]} 72. Qg2 {[%clk 0:00:20.4]} 72... f3 {[%clk 0:00:44.1]}
73. Qg6+ {[%clk 0:00:21]} 73... Kd2 {[%clk 0:00:44.9]} 74. Qg3 {[%clk
0:00:12.6]} 74... f2 {[%clk 0:00:45.3]} 75. Qh2 {[%clk 0:00:09]} 75... Ke1
{[%clk 0:00:46.3]} 76. Qh4 {[%clk 0:00:09.3]} 76... Ke2 {[%clk 0:00:46.6]} 77.
Qh2 {[%clk 0:00:09.3]} 77... Qf3+ {[%clk 0:00:46.3]} 78. Kd4 {[%clk 0:00:10.2]}
78... Qd3+ {[%clk 0:00:46.6]} 79. Ke5 {[%clk 0:00:11]} 79... Qe3+ {[%clk
0:00:43.1]} 80. Kd5 {[%clk 0:00:12.1]} 80... Kd1 {[%clk 0:00:43.3]} 81. Qh5+
{[%clk 0:00:11.9]} 81... Qe2 {[%clk 0:00:43.5]} 0-1

[Event "*** Titled Tuesday 3|2 Blitz"]
[Site "Chess.com"]
[Date "2015.05.05"]
[Round "2"]
[White "geeeeri"]
[Black "zanbato17"]
[Result "1-0"]
[WhiteElo "2044"]
[BlackElo "2059"]
[TimeControl "180+2"]
[EndTime "11:16:04 PDT"]
[Termination "geeeeri won by resignation"]

1. e4 {[%clk 0:03:01.9]} 1... d5 {[%clk 0:03:01]} 2. exd5 {[%clk 0:03:02.1]}
2... Qxd5 {[%clk 0:03:02.9]} 3. Nc3 {[%clk 0:03:03.6]} 3... Qa5 {[%clk
0:03:04.1]} 4. Bc4 {[%clk 0:03:05]} 4... c6 {[%clk 0:03:05.6]} 5. d3 {[%clk
0:03:06.2]} 5... Bf5 {[%clk 0:03:06.9]} 6. Ne2 {[%clk 0:03:07.5]} 6... e6 {[%clk
0:03:08.3]} 7. Ng3 {[%clk 0:03:09]} 7... Nf6 {[%clk 0:03:07.4]} 8. O-O {[%clk
0:03:10.2]} 8... Bb4 {[%clk 0:03:05.1]} 9. Bd2 {[%clk 0:03:09.9]} 9... O-O
{[%clk 0:03:05.3]} 10. a3 {[%clk 0:03:10.3]} 10... Bxc3 {[%clk 0:03:06.2]} 11.
Bxc3 {[%clk 0:03:10.8]} 11... Qd8 {[%clk 0:03:07.8]} 12. Nxf5 {[%clk 0:03:11.5]}
12... exf5 {[%clk 0:03:09.7]} 13. Qf3 {[%clk 0:03:12.1]} 13... g6 {[%clk
0:03:09.8]} 14. Rae1 {[%clk 0:03:05.9]} 14... Nbd7 {[%clk 0:03:10.4]} 15. h3
{[%clk 0:03:07]} 15... Re8 {[%clk 0:03:02.4]} 16. g4 {[%clk 0:03:06.6]} 16...
Rxe1 {[%clk 0:02:58.7]} 17. Rxe1 {[%clk 0:03:07.6]} 17... fxg4 {[%clk 0:03:00]}
18. hxg4 {[%clk 0:03:08.7]} 18... g5 {[%clk 0:02:52.1]} 19. Qf5 {[%clk
0:03:07.5]} 19... h6 {[%clk 0:02:50.2]} 20. Qg6+ {[%clk 0:03:08.4]} 20... Kh8
{[%clk 0:02:50]} 21. Qxh6+ {[%clk 0:03:05.9]} 21... Kg8 {[%clk 0:02:51.2]} 22.
Qg6+ {[%clk 0:03:01.5]} 22... Kh8 {[%clk 0:02:52.5]} 23. Bxf7 {[%clk 0:03:00.5]}
1-0